[Event "CCT Chessable Masters D-II 2024"]
[Site "Online"]
[Date "2024.02.05"]
[Round "54"]
[White "GMBenjaminBok"]
[Black "AnishGiri"]
[Result "1-0"]
[ECO "A13"]
[WhiteElo "2668"]
[BlackElo "2751"]
[Annotator "TA"]
[PlyCount "91"]
[EventDate "2024.01.12"]
[EventType "k.o."]
[EventCountry "NET"]
[SourceTitle "playchess.com"]
[Source "ChessBase"]
[SourceQuality "1"]
[TimeControl "600+2"]

{[%evp 9,91,21,30,15,24,9,14,13,10,6,25,3,15,26,37,25,26,37,31,31,22,26,25,18,25,21,20,11,8,6,16,18,20,16,16,10,27,36,28,0,29,0,0,0,14,15,22,21,27,0,23,16,22,16,156,154,157,156,155,151,148,148,264,254,251,139,272,275,1104,1075,930,964,844,569,900,757,1109,1016,4141,4141,1848,1151,29983,5734]} 1. c4 {[%emt 0:00:02]} Nf6 {[%emt 0:00:06]} 2. Nf3 {[%emt 0:00:02]} e6 {[%emt 0:00:02][%cal Be7e6,Be6d5,Bd5d4][%mdl 32]} 3. b3 {[%emt 0:00:04]} d5 {[%emt 0:00:02]} 4. Bb2 {[%emt 0:00:01]} c5 {[%emt 0:00:02]} 5. cxd5 {[%emt 0:00:02]} exd5 {[%emt 0:00:01]} 6. g3 {[%emt 0:00:00]} Nc6 {[%emt 0:00:03]} 7. Bg2 {[%emt 0:00:02]} d4 {[%emt 0:00:14]} 8. O-O {[%emt 0:00:04] The position is equal.} Be7 {[%emt 0:00:02]} 9. Na3 {[%emt 0:00:12]} O-O {[%emt 0:00:02]} 10. e3 {[%emt 0:00:31]} Bf5 {[%emt 0:00:49]} 11. Nc4 {[%emt 0:00:07]} dxe3 {[%emt 0:00:29]} 12. dxe3 {[%emt 0:00:20]} Qxd1 {[%emt 0:00:11]} 13. Rfxd1 {[%emt 0:00:04]} Rfd8 {[%emt 0:00:00]} 14. Nfe5 {[%emt 0:00:58]} Rxd1+ $1 {[%emt 0:00:03]} 15. Rxd1 {[%emt 0:00:02]} Rd8 {[%emt 0:00:00]} 16. Rxd8+ {[%emt 0:01:57]} Nxd8 {[%emt 0:00:00]} 17. Kf1 {[%emt 0:00:13]} Be4 {[%emt 0:01:13]} 18. Na5 {[%emt 0:02:15]} Bxg2+ {[%emt 0:00:36]} 19. Kxg2 {[%emt 0:00:02]} Ne8 {[%emt 0:00:11]} 20. f4 {[%emt 0:01:08]} f6 {[%emt 0:00:09][%cal Bf7f6,Bf6f5][%mdl 32]} 21. Nd3 {[%emt 0:00:12]} f5 {[%emt 0:01:17]} 22. Kf3 {[%emt 0:00:15]} Kf7 {[%emt 0:00:15]} 23. e4 {[%emt 0:00:37]} g6 {[%emt 0:00:08]} 24. h3 {[%emt 0:00:40]} Ke6 {[%emt 0:00:28]} 25. Nc4 {[%emt 0:00:02]} fxe4+ {[%emt 0:00:31]} 26. Kxe4 {[%emt 0:00:00]} b5 {[%emt 0:00:01]} 27. Ne3 {[%emt 0:00:06]} Nd6+ {[%emt 0:00:45]} 28. Kf3 {[%emt 0:00:01]} Nf5 {[%emt 0:00:11]} 29. Nc2 {[%emt 0:00:23]} Nb7 {[%emt 0:01:10]} 30. g4 {[%emt 0:00:01][%cal Bg3g4,Bg4f5][%mdl 32]} Nfd6 {[%emt 0:00:02]} 31. Ne3 {[%emt 0:00:01][%cal Of4f5]} c4 {[%emt 0:00:08] [#] White stays focused until the end.} (31... Bf6 $11 {keeps the balance.}) 32. f5+ $1 $16 {[%emt 0:00:05][%mdl 512]} gxf5 {[%emt 0:00:02]} 33. gxf5+ {[%emt 0:00:00]} Kf7 {[%emt 0:00:19]} 34. Ne5+ {[%emt 0:00:22]} Ke8 {[%emt 0:00:05]} 35. bxc4 {[%emt 0:00:00] White is more active.} Bf6 {[%emt 0:00:01]} (35... bxc4 $16 36. N5xc4 Bf8) 36. cxb5 $18 {[%emt 0:00:05]} Nxb5 {[%emt 0:00:00]} 37. N3g4 {[%emt 0:00:04]} (37. Nd5 $18 Bxe5 38. Bxe5) 37... Bxe5 {[%emt 0:00:04]} (37... Bg5 $16 {was necessary.} 38. Ne3 Nc5) 38. Bxe5 $16 {[%emt 0:00:03][%mdl 4096] Endgame. KBN-KNN} Nc5 $2 {[%emt 0:00:07]} (38... Kf8 39. Nf6 Kg7 40. Ne4+ Kf7) 39. Nf6+ $18 {[%emt 0:00:03]} Ke7 {[%emt 0:00:05]} 40. Nxh7 {[%emt 0:00:01]} Nd7 {[%emt 0:00:00]} 41. Bb2 {[%emt 0:00:03]} Nb6 {[%emt 0:00:03]} 42. Ng5 {[%emt 0:00:04]} Nd7 {[%emt 0:00:15]} 43. h4 {[%emt 0:00:01]} Ke8 {[%emt 0:00:04]} 44. h5 {[%emt 0:00:01] [#] Strongly threatening h6.} Nd6 {[%emt 0:00:01]} 45. Kf4 {[%emt 0:00:06] Black must now prevent h6.} Nf8 {[%emt 0:00:11]} 46. h6 {[%emt 0:00:02] Weighted Error Value: White=0.24 (precise) /Black=0.45.  Mistake:       	White=1     	Black=4      Inaccurate:     	White=3     	Black=2      OK:         	White=12    	Black=11     Best:        	White=2     	Black=2      Strong:       	---       	Black=1} (46. Ba3 $142 Nb5 47. Bxf8 Kxf8 48. f6 Nd6 49. h6 (49. Ke5 Ne8 50. h6 Nxf6 51. Kxf6 Ke8 52. h7 Kd7 53. h8=Q Kc6 54. Qc8+ Kd5) 49... Ke8 50. h7 Kd8 51. h8=Q+ (51. h8=R+ Kc7 52. Ne4 Nb5 53. f7 Nd4 54. Rh6 Kd7 55. f8=Q Ne6+ 56. Rxe6 Kxe6) 51... Kc7 52. f7) 1-0

[Event "CCT Chessable Masters D-II 2024"]
[Site "Online"]
[Date "2024.02.05"]
[Round "55"]
[White "Sibelephant"]
[Black "GMBenjaminBok"]
[Result "1/2-1/2"]
[ECO "A07"]
[WhiteElo "2779"]
[BlackElo "2678"]
[Annotator "TA"]
[PlyCount "79"]
[EventDate "2024.01.12"]
[EventType "k.o."]
[EventCountry "NET"]
[SourceTitle "playchess.com"]
[Source "ChessBase"]
[SourceQuality "1"]
[TimeControl "600+2"]

{[%evp 15,79,-8,10,-4,0,-22,0,0,9,2,0,0,0,0,0,0,0,-72,-69,-230,-21,-20,0,-63,-54,-38,-8,-70,-81,-95,-12,-16,-6,-42,-43,-189,-202,-197,-184,-179,-184,-189,-177,-201,-201,-386,-386,-386,-383,-383,-357,-358,-360,-343,-344,-429,-237,-237,0,-728,0,0,0,0,0,0]} 1. Nf3 {[%emt 0:00:06]} d5 {[%emt 0:00:04]} 2. g3 {[%emt 0:00:10]} g6 {[%emt 0:00:03]} 3. Bg2 {[%emt 0:00:03]} Bg7 {[%emt 0:00:01]} 4. O-O {[%emt 0:00:32]} e5 {[%emt 0:00:02]} 5. d3 {[%emt 0:00:01]} Nc6 {[%emt 0:00:01]} 6. Nc3 {[%emt 0:00:05]} Nge7 {[%emt 0:00:02]} 7. e4 {[%emt 0:00:03]} dxe4 {[%emt 0:00:01]} 8. dxe4 {[%emt 0:00:02]} O-O {[%emt 0:00:03]} 9. Be3 {[%emt 0:00:35]} Nd4 {[%emt 0:00:19]} 10. Ne2 {[%emt 0:00:18]} Bg4 {[%emt 0:00:18]} 11. Bxd4 {[%emt 0:00:21]} exd4 {[%emt 0:00:04]} 12. Nexd4 {[%emt 0:00:12]} c5 {[%emt 0:02:54] Inhibits c3.} 13. Ne2 {[%emt 0:00:04]} Bxb2 {[%emt 0:01:04] A strong pair of Bishops.} 14. Rb1 {[%emt 0:00:44]} Bg7 {[%emt 0:00:07]} 15. Rxb7 {[%emt 0:02:32]} Nc6 {[%emt 0:00:03]} 16. c3 {[%emt 0:01:15]} (16. h3 $11 Qc8 17. Rb5) 16... Qf6 $1 $17 {[%emt 0:02:38]} 17. Nf4 $2 {[%emt 0:00:33] [#]} (17. Nd2 $15) 17... Qxc3 $2 {[%emt 0:00:13]} (17... Ne5 $1 $19 {And now ...Rad8 would win.} 18. Qe2 Bxf3 (18... g5 19. Nd5 $16) 19. Bxf3 g5) 18. Nd5 $11 {[%emt 0:00:33]} Qa5 {[%emt 0:00:24][%cal Oa8b8]} 19. h3 {[%emt 0:01:29]} (19. Qb1 $11) 19... Bxf3 $15 {[%emt 0:00:02]} 20. Qxf3 {[%emt 0:00:02]} Qxa2 {[%emt 0:00:22]} 21. Nf6+ {[%emt 0:00:25]} (21. Qe3 $11) 21... Kh8 {[%emt 0:00:11] aiming for ...Nd4.} 22. Nd7 {[%emt 0:00:18]} Nd4 {[%emt 0:01:04]} (22... Ne5 $17 23. Nxe5 Bxe5) 23. Qe3 $11 {[%emt 0:00:03]} Rfd8 {[%emt 0:00:13] Strongly threatening ...Rac8.} 24. e5 {[%emt 0:00:05]} ({Much less strong is} 24. Nxc5 Rac8 25. Nb3 Rd6 $14) 24... Rac8 {[%emt 0:00:05] Hoping for ...Qe6.} 25. Kh2 {[%emt 0:00:08]} (25. Nf6 $15) 25... Qe6 $19 {[%emt 0:00:11]} 26. Nf6 {[%emt 0:00:08]} Bxf6 {[%emt 0:00:02]} 27. exf6 {[%emt 0:00:01]} Qxf6 {[%emt 0:00:00]} 28. Rxa7 {[%emt 0:00:01]} c4 {[%emt 0:00:05]} 29. Rc1 {[%emt 0:00:00]} Kg7 {[%emt 0:00:10][%cal Oc4c3] ...c3! would now be deadly.} 30. Rb7 $2 {[%emt 0:00:09] [#]} (30. Qc3) 30... c3 $1 {[%emt 0:00:02][%mdl 512]} 31. Rb4 {[%emt 0:00:02]} c2 {[%emt 0:00:05]} 32. Be4 {[%emt 0:00:00]} Rd6 {[%emt 0:00:08]} 33. Kg2 {[%emt 0:00:02]} Re8 {[%emt 0:00:01]} 34. Rc4 {[%emt 0:00:03]} h5 {[%emt 0:00:02]} 35. Qd3 {[%emt 0:00:03]} Red8 {[%emt 0:00:05]} (35... h4 $142 {Threatens to win with ...hxg3.} 36. g4 Rb8) 36. Qc3 {[%emt 0:00:02] [#]} Re8 $2 {[%emt 0:00:02]} (36... Re6 $1 $19 {[%cal Re6e4]} 37. Bf3 Rb6 38. Rxd4 Qxd4 (38... Rxd4 $2 39. h4 $19) 39. Rxc2 (39. Qxd4+ Rxd4 40. Rxc2 h4 $19) 39... Qxc3 40. Rxc3 Rd2) 37. Bxc2 {[%emt 0:00:01][%mdl 8192]} (37. Qd3 $11) 37... Nxc2 $2 {[%emt 0:00:02]} (37... Re2 $19 38. Rf1 Rxc2 39. Qxd4 Qxd4 (39... Rxd4 $2 40. Rxc2 Qe5 41. Rc3 $19) 40. Rxd4 Rxd4) 38. Qxf6+ $11 {[%emt 0:00:01] The position is equal.} Rxf6 {[%emt 0:00:01]} 39. R1xc2 {[%emt 0:00:00]} Ree6 {[%emt 0:00:01]} 40. h4 {[%emt 0:00:02] Weighted Error Value: White=0.46/Black=0.44.  Loses game:     	White=2     	---        Missed win:     	---       	Black=3      Mistake:       	White=5     	Black=2      Inaccurate:     	White=1     	Black=1      OK:         	White=13    	Black=11     Best:        	---       	Black=4      Strong:       	---       	Black=1      Brilliant:      	---       	Black=1} 1/2-1/2

[Event "CCT Chessable Masters D-II 2024"]
[Site "Online"]
[Date "2024.02.05"]
[Round "55"]
[White "GMBenjaminBok"]
[Black "Sibelephant"]
[Result "1-0"]
[ECO "D45"]
[WhiteElo "2682"]
[BlackElo "2775"]
[Annotator "TA"]
[PlyCount "111"]
[EventDate "2024.01.12"]
[EventType "k.o."]
[EventCountry "NET"]
[SourceTitle "playchess.com"]
[Source "ChessBase"]
[SourceQuality "1"]
[TimeControl "600+2"]

{[%evp 44,111,0,0,0,0,0,0,0,0,20,17,52,-4,58,9,142,128,119,85,143,153,154,138,236,241,350,209,216,232,227,200,568,572,572,556,535,544,530,506,623,609,569,556,1049,693,1056,1035,1664,1416,4790,4710,5081,5081,4134,1950,5081,5081,29981,29983,29984,29985,29985,29986,29987,29988,29988,29989,29989,29990]} 1. c4 {[%emt 0:00:04]} c6 {[%emt 0:02:44]} 2. Nf3 {[%emt 0:00:04]} d5 {[%emt 0:00:03]} 3. e3 {[%emt 0:00:02]} Nf6 {[%emt 0:00:05]} 4. Nc3 {[%emt 0:00:02]} e6 {[%emt 0:00:05]} 5. b3 {[%emt 0:00:04]} Bd6 {[%emt 0:00:04]} 6. Bb2 {[%emt 0:00:05]} O-O {[%emt 0:00:03]} 7. d4 {[%emt 0:00:09]} Nbd7 {[%emt 0:00:06]} 8. Be2 {[%emt 0:00:06]} b6 {[%emt 0:00:08]} 9. O-O {[%emt 0:00:04]} Bb7 {[%emt 0:00:02]} 10. Qc2 {[%emt 0:00:03]} Qe7 {[%emt 0:00:04]} 11. Rad1 {[%emt 0:00:06]} Rfe8 {[%emt 0:00:07] D45: Semi-Slav: 5 e3.} 12. Rfe1 {[%emt 0:00:03]} Bb4 {[%emt 0:00:03]} 13. Bd3 {[%emt 0:00:21]} h6 {[%emt 0:00:17]} 14. h3 {[%emt 0:00:27]} c5 $146 {[%emt 0:00:18]} ({Predecessor:} 14... Rac8 15. a3 Bxa3 16. Bxa3 Qxa3 17. Ra1 Qd6 18. Rxa7 Qb8 19. Raa1 c5 20. Qe2 e5 21. dxe5 Nxe5 22. Nxd5 Nxd5 23. cxd5 Bxd5 24. Nxe5 Qxe5 {½-½ Arutinian,D (2564)-Galkin,A (2598) TUR-chT Konya 2011 (1)}) 15. a3 {[%emt 0:00:12]} dxc4 {[%emt 0:00:42]} 16. Bxc4 {[%emt 0:00:05]} Bxf3 {[%emt 0:00:23]} 17. gxf3 {[%emt 0:00:02]} cxd4 {[%emt 0:00:06]} 18. axb4 {[%emt 0:00:06]} dxc3 {[%emt 0:00:03]} 19. Qxc3 {[%emt 0:00:02]} Rac8 {[%emt 0:00:08]} 20. b5 {[%emt 0:00:07]} Nf8 {[%emt 0:00:40]} 21. Kh2 {[%emt 0:00:47]} Ng6 {[%emt 0:00:09]} 22. Rg1 {[%emt 0:00:08]} a6 {[%emt 0:00:22]} 23. Qd3 {[%emt 0:01:44]} (23. bxa6 $2 b5 24. Ra1 (24. Rxg6 $2 fxg6 25. Rc1 bxc4 $19) 24... bxc4 25. bxc4 e5 $19) (23. Rxg6 fxg6 24. Qe1 (24. bxa6 $2 b5 $19) 24... axb5 25. Bxb5 Red8 $19) 23... axb5 {[%emt 0:00:04]} 24. Bxb5 {[%emt 0:00:03]} Red8 {[%emt 0:00:05]} 25. Qe2 {[%emt 0:00:05]} Rxd1 {[%emt 0:00:11]} 26. Rxd1 {[%emt 0:00:07]} Rc5 {[%emt 0:00:36]} (26... Nh4 {feels hotter.} 27. Rd4 Nh5 28. Ba6 Rd8) 27. f4 {[%emt 0:00:11]} Qc7 {[%emt 0:00:18]} 28. Bd3 {[%emt 0:00:11]} (28. Bxf6 $14 gxf6 29. Rd7) 28... Nd5 {[%emt 0:00:27]} (28... e5 $1 $11) 29. Qg4 {[%emt 0:00:16]} (29. Qf3 $14) 29... h5 {[%emt 0:00:15]} (29... Nxe3 $11 {remains equal.} 30. fxe3 Rc2+ 31. Kg3 (31. Bxc2 Qxc2+ 32. Kg1 Qxb2 $11) 31... Rxb2 32. Bxg6 fxg6 33. Qxg6 e5) 30. Qg3 {[%emt 0:00:15]} (30. Qxh5 $2 Ndxf4 $19) 30... Nde7 {[%emt 0:00:03]} 31. Qf3 {[%emt 0:00:36]} Nf5 {[%emt 0:00:18] [#]} (31... Rd5 $142) 32. Be4 $1 $16 {[%emt 0:00:34]} (32. Qxh5 Nxe3 33. Be5 Nxd1 34. Bxg6 fxg6 $17) 32... Nfh4 {[%emt 0:00:07]} 33. Qe2 {[%emt 0:00:18]} Nf5 {[%emt 0:00:03] [#]} (33... f5 $16 34. Bh1 Rc2) 34. Rd2 $1 $18 {[%emt 0:00:14]} (34. Qxh5 Nxe3 (34... Nxf4 $2 35. exf4 Qxf4+ 36. Kg1 $18) 35. Be5 Nxd1 36. Bxg6 fxg6 $17) 34... Nfe7 {[%emt 0:00:17]} (34... Nd6 {was necessary.} 35. Bxg6 fxg6) 35. Qd3 {[%emt 0:00:19]} (35. b4 $142 Rc4 36. Qd1) 35... f5 $18 {[%emt 0:00:22]} 36. Bf3 {[%emt 0:00:17]} Nd5 {[%emt 0:00:04]} 37. Bxh5 {[%emt 0:00:20]} Ndxf4 $2 {[%emt 0:00:09]} (37... Kh7 {is more resistant.}) 38. Qd8+ $18 {[%emt 0:00:26]} Qxd8 {[%emt 0:00:03]} 39. Rxd8+ {[%emt 0:00:02]} Kh7 {[%emt 0:00:02]} 40. exf4 {[%emt 0:00:06]} Nxf4 {[%emt 0:00:02]} 41. Bd1 {[%emt 0:00:18]} e5 {[%emt 0:00:03]} 42. b4 {[%emt 0:00:20]} Rb5 {[%emt 0:00:13]} 43. Bc3 {[%emt 0:00:10]} Nd5 {[%emt 0:00:04]} 44. Be2 {[%emt 0:00:11]} Nxc3 {[%emt 0:00:03]} 45. Bxb5 {[%emt 0:00:03]} Nxb5 {[%emt 0:00:02]} 46. Rb8 {[%emt 0:00:06]} Nc3 {[%emt 0:00:05]} 47. Rxb6 {[%emt 0:00:03]} e4 {[%emt 0:00:02]} 48. b5 {[%emt 0:00:06]} f4 {[%emt 0:00:03]} 49. Kg2 {[%emt 0:00:11]} (49. Rb8 $142 Kg6 50. b6) 49... g5 {[%emt 0:00:07]} 50. Rb8 {[%emt 0:00:05]} f3+ {[%emt 0:00:10]} 51. Kf1 {[%emt 0:00:03]} e3 {[%emt 0:00:03]} 52. fxe3 {[%emt 0:00:04]} Ne4 {[%emt 0:00:02]} 53. b6 {[%emt 0:00:05]} Kg7 {[%emt 0:00:05]} 54. b7 {[%emt 0:00:04]} Nc5 {[%emt 0:00:03]} 55. Rg8+ {[%emt 0:00:03]} Kxg8 {[%emt 0:00:03]} 56. b8=Q+ {[%emt 0:00:02]} ({And not} 56. b8=B Ne4 $11) 1-0

[Event "CCT Chessable Masters D-II 2024"]
[Site "Online"]
[Date "2024.02.05"]
[Round "56"]
[White "LevonAronian"]
[Black "GMBenjaminBok"]
[Result "0-1"]
[ECO "C54"]
[WhiteElo "2761"]
[BlackElo "2682"]
[Annotator "TA"]
[PlyCount "102"]
[EventDate "2024.01.12"]
[EventType "k.o."]
[EventCountry "NET"]
[SourceTitle "playchess.com"]
[Source "ChessBase"]
[SourceQuality "1"]
[TimeControl "600+2"]

{[%evp 24,102,8,13,15,0,0,0,0,-18,-13,-20,-18,-37,-13,-41,0,-66,-77,-57,-50,-172,-168,-288,-290,-410,-337,-459,-257,-258,-245,-270,-263,-258,-247,-473,-427,-496,-485,-465,-241,-245,-249,-249,-244,-254,-259,-259,-213,-222,-219,-221,-221,-219,-203,-230,-216,-209,-183,-289,-271,-282,-162,-168,-175,-175,-175,-201,-147,-29973,-29973,-29976,-29977,-29977,-29978,-29978,-29979,-29979,-29980,-29979,-29980]} 1. e4 {[%emt 0:00:02]} e5 {[%emt 0:00:04]} 2. Bc4 {[%emt 0:00:02]} Nf6 {[%emt 0:00:02]} 3. d3 {[%emt 0:00:01]} Nc6 {[%emt 0:00:01]} 4. Nf3 {[%emt 0:00:03]} Bc5 {[%emt 0:00:03]} 5. O-O {[%emt 0:00:02]} d6 {[%emt 0:00:04]} 6. c3 {[%emt 0:00:01]} a5 {[%emt 0:00:01] Nowadays more popular than 6...0-0. C54: Giuoco Piano: 4 c3 Nf6, main lines with 5 d4 and 5 d3.} 7. Re1 {[%emt 0:00:04]} O-O {[%emt 0:00:02]} 8. Nbd2 {[%emt 0:00:03]} Be6 {[%emt 0:00:02]} 9. Bb3 {[%emt 0:00:15]} Bxb3 {[%emt 0:00:44]} 10. Nxb3 {[%emt 0:00:02]} a4 {[%emt 0:00:08]} 11. Nxc5 {[%emt 0:00:07]} dxc5 {[%emt 0:00:01]} 12. Be3 $146 {[%emt 0:00:09]} ({Predecessor:} 12. Bg5 h6 13. Be3 Qe7 14. Nh4 b6 15. Nf5 Qe6 16. Qf3 Ne7 17. d4 cxd4 18. Nxe7+ Qxe7 19. cxd4 exd4 20. Bxd4 {½-½ Fang,Y (2420)-Zhou,W (2606) CHN-chT China 2017 (10.3)}) 12... b6 {[%emt 0:00:19]} 13. Qc2 {[%emt 0:00:03]} Qe7 {[%emt 0:00:13]} 14. Rad1 {[%emt 0:00:19]} Rfd8 {[%emt 0:00:08]} 15. h3 {[%emt 0:00:02]} h6 {[%emt 0:00:20]} 16. Kh2 {[%emt 0:00:11]} Qe6 {[%emt 0:00:08]} 17. a3 {[%emt 0:00:01]} Rd7 {[%emt 0:00:31]} 18. g4 {[%emt 0:00:06]} Nh7 {[%emt 0:01:49]} 19. Rg1 {[%emt 0:00:14]} Rad8 {[%emt 0:01:04]} 20. g5 {[%emt 0:01:57]} (20. Qxa4 $11 Rxd3 21. Rxd3 Rxd3 22. Rd1 Rxd1 23. Qxd1) 20... hxg5 $15 {[%emt 0:00:08]} 21. Bxg5 {[%emt 0:00:02]} Nxg5 {[%emt 0:00:28]} 22. Nxg5 {[%emt 0:00:00]} (22. Rxg5 $15 c4 23. Rdg1 (23. Qxa4 $2 {loses.} Rxd3 24. Rxd3 cxd3 $19)) 22... Qf6 $19 {[%emt 0:00:12]} 23. Qxa4 {[%emt 0:00:02]} (23. Rg3 $142) 23... Rxd3 $19 {[%emt 0:00:37]} 24. Rdf1 {[%emt 0:01:36]} (24. Rxd3 $142 Rxd3 25. Rg2 (25. Kh1 $2 Rd2 $19)) 24... Ne7 {[%emt 0:00:56]} 25. f4 {[%emt 0:00:54]} exf4 {[%emt 0:00:22]} (25... Ng6 $142 26. fxe5 Qxe5+ 27. Kh1 Rg3) 26. e5 $19 {[%emt 0:00:04]} Qxe5 {[%emt 0:00:19]} 27. Qxf4 {[%emt 0:00:03]} Ng6 {[%emt 0:00:31]} 28. Qxe5 {[%emt 0:00:02]} Nxe5 {[%emt 0:00:00]} 29. Rf5 $2 {[%emt 0:00:01]} (29. a4) 29... f6 {[%emt 0:00:15]} (29... Rd2+ $2 30. Rg2 $19) 30. Ne6 {[%emt 0:00:04]} R8d7 {[%emt 0:00:31]} 31. Rgf1 {[%emt 0:00:30]} Rd2+ {[%emt 0:00:08]} (31... R3d6 $142 32. Ng5 Rd2+ 33. Kg1 Rxb2) 32. R5f2 $19 {[%emt 0:00:05]} Kf7 {[%emt 0:00:27]} 33. Ng5+ {[%emt 0:00:08]} Ke7 {[%emt 0:00:02]} 34. Ne4 {[%emt 0:00:01]} Rxf2+ {[%emt 0:00:01]} 35. Rxf2 {[%emt 0:00:01]} Rd3 {[%emt 0:00:05]} 36. Re2 {[%emt 0:00:12]} Kf7 {[%emt 0:00:08]} 37. Nf2 {[%emt 0:00:09]} Rd7 {[%emt 0:00:09]} 38. Kg3 {[%emt 0:00:13]} g5 {[%emt 0:00:01]} 39. h4 {[%emt 0:00:02]} gxh4+ {[%emt 0:00:03]} 40. Kxh4 {[%emt 0:00:01]} Rd8 {[%emt 0:00:01]} 41. Ne4 {[%emt 0:00:35]} (41. Kh3 $142) 41... Rg8 $19 {[%emt 0:00:02]} 42. Kh3 {[%emt 0:00:06]} Nf3 {[%emt 0:00:06]} (42... f5 $142 43. Ng3 Rh8+ 44. Kg2 Ke6) 43. Re3 $19 {[%emt 0:00:34]} Ng5+ {[%emt 0:00:01]} 44. Nxg5+ {[%emt 0:00:02]} Rxg5 {[%emt 0:00:00]} 45. b4 {[%emt 0:00:01]} Re5 {[%emt 0:00:06]} 46. Rxe5 $4 {[%emt 0:00:53][%mdl 8192]} (46. Rd3 $17) 46... fxe5 {[%emt 0:00:00]} 47. bxc5 {[%emt 0:00:00]} b5 {[%emt 0:00:07]} 48. Kg4 {[%emt 0:00:02]} Ke6 {[%emt 0:00:01]} 49. c6 {[%emt 0:00:00]} Kd6 {[%emt 0:00:05]} 50. Kf3 {[%emt 0:00:14]} Kxc6 {[%emt 0:00:01]} 51. Ke4 {[%emt 0:00:01]} Kd6 {[%emt 0:00:01]} 0-1

[Event "CCT Chessable Masters D-II 2024"]
[Site "Online"]
[Date "2024.02.05"]
[Round "56"]
[White "GMBenjaminBok"]
[Black "LevonAronian"]
[Result "0-1"]
[ECO "B06"]
[WhiteElo "2692"]
[BlackElo "2751"]
[Annotator "TA"]
[PlyCount "92"]
[EventDate "2024.01.12"]
[EventType "k.o."]
[EventCountry "NET"]
[SourceTitle "playchess.com"]
[Source "ChessBase"]
[SourceQuality "1"]
[TimeControl "600+2"]

{[%evp 21,92,69,68,64,61,52,52,46,38,22,21,0,7,0,17,0,0,0,0,0,7,-82,10,0,0,0,0,-55,-53,-49,-54,-54,-54,-58,-54,-152,-122,-186,-116,-116,22,0,0,-66,-66,-66,-65,-86,-103,-97,-101,-85,-116,-89,-89,-107,-100,-97,-100,-126,-101,-132,-90,-105,-97,-237,-51,-60,0,-1620,-1562,-1562,-1352]} 1. d4 {[%emt 0:00:02]} g6 {[%emt 0:00:05]} 2. Nf3 {[%emt 0:00:34]} Bg7 {[%emt 0:00:02]} 3. e4 {[%emt 0:00:24]} d6 {[%emt 0:00:02]} 4. Bc4 {[%emt 0:00:02]} e6 {[%emt 0:00:03]} 5. Bb3 {[%emt 0:00:02]} a6 {[%emt 0:00:05]} 6. O-O {[%emt 0:00:02] B06: Modern Defence.} Nd7 {[%emt 0:00:02]} 7. Qe2 {[%emt 0:00:07]} Ne7 {[%emt 0:00:10]} 8. c3 {[%emt 0:00:12]} b6 {[%emt 0:00:04]} 9. Rd1 {[%emt 0:00:04]} Bb7 {[%emt 0:00:01]} 10. Nbd2 {[%emt 0:00:02]} Nf6 $146 {[%emt 0:00:19]} ({Predecessor:} 10... O-O 11. Nf1 Nc6 12. Ng3 h6 13. Bc2 Qe7 14. Be3 e5 15. d5 Ncb8 16. Qd2 Kh7 {1-0 Barlov,D (2487)-Hernando Rodrigo,J (2331) Gran Canaria Montalvo Memorial 3rd 2010 (7)}) 11. e5 {[%emt 0:00:33]} Nd7 {[%emt 0:00:29]} 12. exd6 {[%emt 0:01:00]} cxd6 {[%emt 0:00:02]} 13. Ne4 {[%emt 0:01:02]} Nf6 {[%emt 0:00:16]} 14. Nxf6+ {[%emt 0:00:06]} Bxf6 {[%emt 0:00:00]} 15. Ng5 {[%emt 0:00:42]} O-O {[%emt 0:00:39]} 16. Qg4 {[%emt 0:00:44]} Nf5 {[%emt 0:00:15]} 17. Ne4 {[%emt 0:00:10]} Be7 {[%emt 0:00:10]} 18. Ng3 {[%emt 0:00:10]} Nh4 {[%emt 0:00:12]} 19. f3 {[%emt 0:01:21]} Kh8 {[%emt 0:00:50]} 20. Bh6 {[%emt 0:00:47]} Rg8 {[%emt 0:00:24]} 21. Qf4 {[%emt 0:00:35]} (21. Re1 $1 $11) 21... Bf6 {[%emt 0:00:12]} (21... g5 $1 $17 {[%cal Rg5f4]} 22. Qg4 (22. Qxf7 Rg6 $17) 22... Rg6) 22. Ne4 $11 {[%emt 0:00:25]} Bxe4 $1 {[%emt 0:00:07]} 23. fxe4 {[%emt 0:00:05]} g5 {[%emt 0:00:01]} 24. Qf2 {[%emt 0:00:04]} (24. Qg4 $1 $11) 24... Rg6 $15 {[%emt 0:00:06]} 25. g3 {[%emt 0:00:45]} (25. e5 $2 Be7 (25... dxe5 26. dxe5 Qc7 27. exf6 $11) (25... Rxh6 26. exf6 Rxf6 27. Qe3 $17) 26. d5 (26. g3 $2 Nf5 $19) 26... Rxh6 $19) 25... Rxh6 {[%emt 0:00:07]} 26. Rf1 {[%emt 0:00:06]} Qe7 {[%emt 0:01:01]} (26... Ng6 27. Qxf6+ Qxf6 28. Rxf6 $16) 27. gxh4 {[%emt 0:00:03]} Rg8 {[%emt 0:00:00]} 28. h5 {[%emt 0:00:10]} (28. Rad1 $1 $15) 28... g4 $1 $17 {[%emt 0:00:13]} 29. Qf4 {[%emt 0:00:09]} (29. Qe2 $17) 29... g3 {[%emt 0:00:37]} (29... Rg5 $19 30. Rf2 Rgxh5 (30... e5 31. dxe5 dxe5 32. Qg3 $17)) 30. hxg3 $17 {[%emt 0:00:19]} (30. Qxh6 $2 Bg5 $19) 30... Rg5 {[%emt 0:01:40]} ({Black should play} 30... Bh4 $1 $17 {[%cal Rh4g3]} 31. Rf3 (31. Qxh6 $2 Bg5 $19) 31... Rxh5 32. Qxf7 Rxg3+ 33. Kf1 Rxf3+ 34. Qxf3 Rg5) 31. Kg2 {[%emt 0:00:10]} e5 {[%emt 0:00:01]} 32. Qf3 {[%emt 0:00:05]} (32. Qe3 $1 $11) 32... exd4 $15 {[%emt 0:00:00]} 33. cxd4 {[%emt 0:00:02]} Bxd4 {[%emt 0:00:01]} 34. Qxf7 {[%emt 0:00:04]} Rxg3+ $1 {[%emt 0:00:28]} (34... Qxe4+ 35. Qf3 Qxf3+ 36. Rxf3 $11) 35. Kxg3 {[%emt 0:00:01]} Qg5+ {[%emt 0:00:01]} ({Worse is} 35... Qxe4 36. Qg8#) 36. Kf3 {[%emt 0:00:02]} Rf6+ {[%emt 0:00:01]} ({And not} 36... Rxh5 37. Qf8+) 37. Qxf6+ {[%emt 0:00:02]} Bxf6 {[%emt 0:00:05]} 38. Rg1 {[%emt 0:00:02]} Qxh5+ {[%emt 0:00:00]} 39. Rg4 {[%emt 0:00:02] [#]} h6 $1 {[%emt 0:00:46]} (39... Bxb2 $2 40. Rag1 $17) 40. Rag1 {[%emt 0:00:02]} Bg5 {[%emt 0:00:10]} 41. Ke2 {[%emt 0:00:01]} Qh2+ {[%emt 0:00:05]} 42. R1g2 {[%emt 0:00:02]} Qe5 {[%emt 0:00:05]} 43. Rf2 {[%emt 0:00:02] [#]} (43. Kf1 $17 {was worth a try.}) 43... Qxb2+ $2 {[%emt 0:00:10]} (43... h5 $1 $19 {[%cal Rh5g4]} 44. Rf8+ Kh7) 44. Kf1 {[%emt 0:00:01]} Qd4 {[%emt 0:00:05]} ({Better is} 44... Qe5 $15 45. Kg2 h5) 45. Bd5 $2 {[%emt 0:00:02][%mdl 8192]} (45. Kg2 $11) 45... Qd1+ $19 {[%emt 0:00:03]} 46. Kg2 {[%emt 0:00:01]} Qxg4+ {[%emt 0:00:00]} 0-1